bitfinex/quotes_SOLUSD_20240813
["timestamp","ask_amount","ask_price","bid_price","bid_amount"]
[1723520521386,32.53,144.05,144.0,6.9443]
[1723520521541,39.4724,144.05,144.0,6.9443]
[1723520522063,6.9428,144.04,143.99,23.5511]
[1723520522234,6.9428,144.04,143.99,30.4958]
[1723520522439,32.53,144.05,143.99,23.5511]
[1723520522970,6.943,144.03,143.99,23.5511]
[1723520523180,6.9426,144.04,143.99,30.4958]
[1723520523581,6.9454,143.98,143.94,30.1013]
[1723520523757,0.12549,144.04,143.95,17.3663]
[1723520523957,20.0,144.05,143.99,17.3615]
[1723520524193,20.0,144.05,144.0,6.9439]
[1723520524194,6.942,144.05,144.0,6.9439]
[1723520524352,6.9416,144.06,144.01,6.9439]
[1723520524551,32.53,144.08,143.99,17.3615]
[1723520524552,52.53,144.08,143.99,17.3615]
[1723520524758,32.53,144.06,143.99,17.3615]
[1723520525367,39.4719,144.06,144.01,6.9439]
[1723520525579,32.53,144.06,144.01,6.9439]
[1723520525970,39.4716,144.06,144.01,6.9439]
[1723520526171,6.942,144.05,144.01,6.9439]
[1723520526665,6.9441,144.01,143.96,24.3114]
[1723520526971,77.65549,144.04,143.97,6.9458]
[1723520527169,6.9439,144.01,143.96,24.3118]
[1723520527354,6.9434,144.03,143.98,6.945]
[1723520527563,32.53,144.06,143.98,17.3625]
[1723520527862,20.0,144.05,143.98,17.3625]
[1723520528169,26.9424,144.05,144.0,6.9444]
[1723520528564,6.9425,144.04,144.0,6.9444]
[1723520529189,20.0,144.05,144.0,6.9444]
[1723520529190,26.942,144.05,144.0,6.9444]
[1723520529870,0.12549,144.09,144.0,32.7533]
[1723520530073,20.37647,144.09,144.0,32.7533]
[1723520530284,20.37647,144.09,144.01,6.9438]
[1723520530285,6.9419,144.06,144.01,6.9438]
[1723520530602,6.9426,144.04,144.0,32.7533]
[1723520532179,6.9426,144.04,144.0,39.6976]
[1723520533689,6.9407,144.08,144.03,6.9426]
[1723520534295,26.9402,144.09,144.04,6.942]
[1723520534600,6.9407,144.08,144.03,6.9426]
[1723520535307,6.9411,144.07,144.03,6.9426]
[1723520536609,6.9406,144.08,144.03,6.9426]
[1723520536778,6.9406,144.08,144.04,1.38828858]
[1723520536980,6.9406,144.08,144.03,6.9426]
[1723520538103,26.9402,144.09,144.04,6.9424]
[1723520538314,6.9377,144.14,144.04,15.334]
[1723520538617,32.53,144.14,144.06,6.9411]
[1723520538782,6.9404,144.09,144.05,17.3545]
[1723520539610,6.9406,144.08,144.04,22.2765]
[1723520539814,6.9412,144.07,144.04,15.334]
[1723520541715,32.53,144.08,144.01,6.0902]
[1723520541894,32.53,144.06,144.0,15.5979]
[1723520542594,6.9424,144.05,144.0,22.5421]
[1723520543239,32.53,144.06,144.0,15.5979]
[1723520543405,0.12549,144.05,144.0,15.5979]
[1723520543598,6.9426,144.04,144.0,15.5979]
[1723520543917,6.9426,144.04,144.0,22.5422]
[1723520544223,32.53,144.08,144.01,6.9437]
[1723520544425,6.9416,144.06,144.02,6.9434]
[1723520544712,6.942,144.05,144.01,6.9439]
[1723520545211,6.942,144.05,144.0,22.5423]
[1723520545405,6.9426,144.04,144.0,22.5423]
[1723520546027,6.9421,144.05,144.0,22.5423]
[1723520546326,6.9421,144.05,144.01,6.9438]
[1723520546822,6.9421,144.05,144.0,22.5422]
[1723520547415,6.9431,144.03,144.0,15.5979]
[1723520547817,32.53,144.06,144.0,16.98662896]
[1723520548019,20.0,144.05,144.0,15.5979]
[1723520548220,26.9424,144.05,144.0,22.5423]
[1723520548433,6.9431,144.03,144.0,15.5979]
[1723520549223,32.53,144.04,143.97,6.2517]
[1723520549441,6.9458,143.98,143.96,16.1004]
[1723520549601,32.53,144.02,143.93,46.573]
[1723520549909,32.53,144.0,143.94,6.9471]
[1723520550308,32.53,144.0,143.94,8.33629623]
[1723520550530,32.53,144.0,143.94,6.9471]
[1723520550931,6.945,143.99,143.94,6.9471]
[1723520551435,6.9444,144.0,143.96,6.9462]
[1723520552005,6.9444,144.0,143.95,6.9468]
[1723520552210,6.9444,144.0,143.96,6.9462]
[1723520552409,6.9444,144.0,143.95,6.9467]
[1723520552819,6.9449,143.99,143.95,6.9467]
[1723520553136,6.9449,143.99,143.94,6.9472]
[1723520553309,6.9455,143.98,143.93,46.5731]
[1723520554632,6.9455,143.98,143.94,6.9472]
[1723520555150,6.945,143.99,143.94,6.9472]
[1723520555515,15.82859,144.04,143.96,6.9462]
[1723520555824,15.82859,144.04,143.97,6.9457]
[1723520555825,6.9438,144.02,143.97,6.9457]
[1723520556137,6.944,144.01,143.95,17.3664]
[1723520556447,20.0,144.03,143.95,17.3664]
[1723520556621,6.9443,144.01,143.96,6.9463]
[1723520557121,6.9436,144.02,143.95,17.3664]
[1723520557340,26.943,144.03,143.98,6.945]
[1723520558445,6.9435,144.02,143.98,6.945]
[1723520558743,6.9435,144.02,143.97,24.3092]
[1723520559047,52.53,144.03,143.95,6.9468]
[1723520559344,52.53,144.03,143.93,22.2565]
[1723520559345,6.946,143.97,143.93,22.2565]
[1723520562446,6.946,143.97,143.93,29.2042]
[1723520562632,6.9453,143.99,143.93,22.2565]
[1723520562834,6.9453,143.99,143.94,6.9472]
[1723520563026,17.358,144.03,143.93,22.2565]
[1723520563341,52.53,144.02,143.93,22.2565]
[1723520564022,32.53,144.0,143.93,22.2565]
[1723520564338,6.9454,143.98,143.93,29.2041]
[1723520564734,6.9459,143.97,143.93,29.2041]
[1723520565048,2.66708651,144.04,143.95,0.12549]
[1723520565350,6.9425,144.04,143.99,24.3064]
[1723520565552,6.9421,144.05,144.0,6.9442]
[1723520566347,32.53,144.06,143.99,24.3065]
[1723520566845,6.943,144.03,143.99,24.3065]
[1723520567153,6.943,144.03,143.99,17.3616]
[1723520567654,6.9441,144.01,143.96,24.3117]
[1723520568450,6.9441,144.01,143.97,6.9458]
[1723520570444,6.9435,144.02,143.97,6.9458]
[1723520571146,6.9443,144.01,143.96,6.9459]
[1723520571457,6.9446,144.0,143.95,17.3665]
[1723520571628,6.944,144.01,143.96,6.9463]
[1723520571828,6.9435,144.02,143.97,6.9457]
[1723520572342,35.24731863,144.06,143.97,17.364]
[1723520572642,6.943,144.03,143.99,6.9448]
[1723520573027,6.9426,144.04,143.99,6.9449]
[1723520573726,6.943,144.03,143.99,6.9449]
[1723520574439,6.9426,144.04,144.0,6.9443]
[1723520574627,6.9426,144.04,143.99,6.9448]
[1723520575546,6.9431,144.03,143.99,6.9448]
[1723520575848,6.9426,144.04,143.99,6.9448]
[1723520576047,6.943,144.03,143.99,6.9448]
[1723520576423,6.943,144.03,143.98,6.9452]
[1723520576622,6.9426,144.04,143.99,6.9447]
[1723520578253,6.9396,144.1,144.05,6.9419]
[1723520578427,32.53,144.12,144.06,6.9413]
[1723520578728,22.4801,144.14,144.06,6.9413]
[1723520578729,6.9394,144.11,144.06,6.9413]
[1723520578932,6.9394,144.11,144.07,6.941]
[1723520579323,74.95199545,144.14,144.05,24.2957]
[1723520579570,6.9404,144.09,144.05,17.3541]
[1723520579861,6.9416,144.06,144.02,17.3586]
[1723520580061,6.942,144.05,144.0,6.9444]
[1723520580243,32.53,144.08,144.0,6.9444]
[1723520580547,32.53,144.08,144.03,6.9429]
[1723520580548,6.9409,144.08,144.03,6.9429]
[1723520580776,6.9409,144.08,144.01,17.3587]
[1723520580777,6.9411,144.07,144.02,6.9433]
[1723520582143,6.9416,144.06,144.02,6.9433]
[1723520583049,2.68525621,144.1,144.04,17.356]
[1723520583264,6.9401,144.09,144.04,17.356]
[1723520583461,6.9406,144.08,144.04,17.356]
[1723520584358,22.71592559,144.11,144.05,6.9416]
[1723520584359,2.59043559,144.11,144.05,6.9416]
[1723520584560,32.53,144.12,144.05,6.9416]
[1723520584730,32.53,144.12,144.04,17.356]
[1723520584731,6.9402,144.09,144.04,24.2983]
[1723520585365,17.72197,144.13,144.07,6.9409]
[1723520585366,0.37647,144.13,144.07,6.9409]
[1723520585541,52.53,144.13,144.07,6.9409]
[1723520585866,52.53,144.13,144.07,8.3288128]
[1723520586161,6.9387,144.12,144.08,8.32840603]
[1723520586368,6.9392,144.11,144.06,17.3528]
[1723520586556,6.9401,144.09,144.06,17.3528]
[1723520587380,55.24932999,144.13,144.06,17.3528]
[1723520587381,6.9397,144.1,144.06,17.3528]
[1723520587866,6.9401,144.09,144.05,15.2358]
[1723520589165,6.9401,144.09,144.05,22.1777]
[1723520589328,6.9397,144.1,144.05,22.1777]
[1723520589960,6.9392,144.11,144.05,32.5902]
[1723520590353,26.9386,144.13,144.07,17.3521]
[1723520590661,26.9386,144.13,144.08,1.38779678]
[1723520590876,6.9386,144.13,144.07,17.3521]
[1723520591051,6.9386,144.13,144.06,6.6324]
[1723520591052,32.53,144.15,144.09,18.7368614]
[1723520591373,6.9377,144.14,144.09,24.289]
[1723520591759,6.9383,144.13,144.09,24.289]
[1723520591943,6.9377,144.14,144.09,24.289]
[1723520594579,6.9382,144.13,144.09,24.289]
[1723520595380,6.9377,144.14,144.09,24.289]
[1723520596182,6.9377,144.14,144.09,17.3491]
[1723520596358,0.8292731,144.19,144.12,6.9382]
[1723520596560,6.9362,144.17,144.13,1.38737908]
[1723520596753,6.9361,144.18,144.11,33.8191]
[1723520596954,6.9363,144.17,144.13,6.938]
[1723520597160,6.9361,144.18,144.13,6.9377]
[1723520597453,6.9363,144.17,144.13,6.9377]
[1723520597653,6.9363,144.17,144.11,33.8191]
[1723520597654,6.9363,144.17,144.12,6.9385]
[1723520598555,32.53,144.18,144.11,33.8191]
[1723520598764,32.53,144.16,144.11,33.8191]
[1723520599879,39.4667,144.16,144.11,40.7581]
[1723520600261,6.9363,144.17,144.12,6.9385]
[1723520600887,6.9368,144.16,144.11,40.7578]
[1723520602581,6.9363,144.17,144.12,8.32602065]
[1723520602881,6.9363,144.17,144.12,6.9385]
[1723520604178,32.53,144.16,144.11,16.4724]
[1723520604373,6.938,144.14,144.11,16.4724]
[1723520604569,32.53,144.16,144.11,23.4114]
[1723520604570,6.9368,144.16,144.11,23.4114]
[1723520604779,39.4661,144.18,144.13,6.938]
[1723520605090,32.53,144.18,144.12,6.9385]
[1723520605786,6.9368,144.16,144.12,6.9385]
[1723520607073,6.9368,144.16,144.11,23.4114]
[1723520607487,6.9368,144.16,144.12,6.9384]
[1723520608998,6.9368,144.16,144.11,23.4114]
[1723520609800,6.9368,144.16,144.12,6.9385]
[1723520610007,3.48455146,144.19,144.14,6.9376]
[1723520610187,10.41985146,144.19,144.15,1.38725201]
[1723520611594,6.9358,144.18,144.15,1.38711838]
[1723520611892,10.41995146,144.19,144.15,1.38711838]
[1723520612676,0.8292731,144.19,144.15,8.32421838]
[1723520613409,7.7645731,144.19,144.15,8.32421838]
[1723520613780,7.7645731,144.19,144.14,6.9375]
[1723520614085,6.9358,144.18,144.14,6.9375]
[1723520614388,32.53,144.18,144.11,16.4724]
[1723520614706,6.9373,144.15,144.11,16.4724]
[1723520615740,6.9413,144.07,144.0,17.348]
[1723520616024,7.06799,144.05,143.99,2.6155118]
[1723520616316,7.06799,144.05,143.92,6.33847594]
[1723520616317,20.0,144.05,143.92,6.33847594]
[1723520616496,65.37647,144.04,143.93,17.369]
[1723520616704,0.25098,144.03,143.93,24.3164]
[1723520616881,0.12549,144.02,143.93,17.369]
[1723520617078,104.4729,144.04,143.95,6.9466]
[1723520617277,6.9436,144.02,143.96,1.38901603]
[1723520617614,20.0,144.04,143.93,17.369]
[1723520617901,20.0,144.06,143.99,6.9447]
[1723520618111,20.0,144.06,143.97,17.3642]
[1723520618112,45.0,144.06,143.97,24.3098]
[1723520618293,0.12549,144.04,143.94,6.9469]
[1723520618614,47.5137,144.02,143.92,23.70837594]
[1723520618906,52.06959,144.01,143.92,23.70837594]
[1723520619105,45.12549,144.01,143.92,23.70837594]
[1723520620182,40.57,143.99,143.92,23.70837594]
[1723520621220,40.57,143.99,143.92,0.06117594]
[1723520622094,40.57,144.01,143.92,0.06117594]
[1723520622285,6.9422,144.05,143.96,6.946]
[1723520622481,40.57,144.06,143.95,17.3669]
[1723520622724,40.57,144.02,143.95,17.3669]
[1723520623015,6.9441,144.01,143.95,17.3669]
[1723520623253,6.9474,143.94,143.92,0.06117594]
[1723520623414,47.5174,143.94,143.92,0.06117594]
[1723520623992,6.9469,143.95,143.92,0.06117594]
[1723520624208,40.57,143.97,143.92,0.06117594]
[1723520624209,6.9474,143.94,143.92,0.06117594]
[1723520624405,92.64289,143.94,143.92,0.06117594]
[1723520625114,47.5174,143.94,143.92,0.06117594]
[1723520628124,40.57,143.94,143.92,0.06117594]
[1723520629117,40.57,143.94,143.88,13.2927]
[1723520629306,47.5173,143.94,143.88,13.2927]
[1723520630620,6.9478,143.93,143.88,6.3426]
[1723520631988,40.57,143.96,143.89,18.76293753]
[1723520632195,40.57,144.0,143.9,1.63949028]
[1723520632419,40.57,144.04,143.98,6.9454]
[1723520632598,47.5115,144.06,143.98,17.3623]
[1723520632804,6.9432,144.03,143.98,17.3623]
[1723520633313,6.9435,144.02,143.96,13.3085]
[1723520633825,6.9435,144.02,143.97,6.9458]
[1723520634026,6.943,144.03,143.97,6.9458]
[1723520634807,85.94647,144.02,143.94,17.3672]
[1723520635202,6.9449,143.99,143.94,24.3145]
[1723520635624,40.57,144.04,143.97,17.3637]
[1723520635803,6.942,144.05,143.99,6.9447]
[1723520636005,6.9426,144.04,143.98,6.9453]
[1723520636898,40.57,144.04,143.97,17.3637]
[1723520637119,6.9438,144.02,143.97,17.3637]
[1723520638227,47.5128,144.04,143.97,17.3637]
[1723520638615,47.5128,144.04,143.98,6.9453]
[1723520639438,47.5118,144.06,144.0,6.9444]
[1723520639613,6.9421,144.05,144.0,6.9444]
[1723520640226,6.9421,144.05,143.99,6.9448]
[1723520642101,40.57,144.06,143.99,6.9448]
[1723520642308,6.9431,144.03,143.98,6.9453]
[1723520643033,6.9426,144.04,143.98,6.9453]
[1723520643325,40.57,144.08,144.0,6.4507]
[1723520643522,6.9417,144.06,144.0,6.4507]
[1723520644002,6.9422,144.05,144.0,6.4507]
[1723520644431,6.9429,144.04,144.0,6.4507]
[1723520645402,6.943,144.03,144.0,6.4507]
[1723520645838,6.9425,144.04,144.0,6.4507]
[1723520646001,6.9421,144.05,144.0,6.4507]
[1723520646318,6.9421,144.05,144.0,13.3949]
[1723520646501,32.45,144.01,143.91,6.649]
[1723520646701,6.945,143.99,143.91,6.649]
[1723520646903,6.945,143.99,143.91,13.5977]
[1723520646904,6.946,143.97,143.91,13.5977]
[1723520647114,6.9473,143.94,143.91,6.649]
[1723520647344,32.45,143.95,143.91,6.649]
[1723520647629,6.9477,143.94,143.88,6.9501]
[1723520648431,6.9477,143.94,143.89,6.9496]
[1723520649048,6.9468,143.96,143.89,17.3736]
[1723520649322,6.9469,143.95,143.9,6.9491]
[1723520650798,47.5763,143.97,143.91,6.9486]
[1723520651007,6.9458,143.98,143.92,6.9478]
[1723520651228,40.63,143.94,143.85,7.20147826]
[1723520651431,0.12549,143.96,143.84,23.5718]
[1723520651432,6.9494,143.9,143.84,23.5718]
[1723520651609,40.63,143.91,143.84,16.6199]
[1723520652109,0.12549,143.93,143.84,23.5716]
[1723520652302,65.37647,143.93,143.84,23.5716]
[1723520652510,6.9499,143.89,143.84,33.9993]
[1723520653229,6.9502,143.88,143.84,33.9993]
[1723520653732,6.9502,143.88,143.82,6.2602]
[1723520653733,6.9509,143.87,143.82,6.2602]
[1723520654437,6.9512,143.86,143.81,17.7999]
[1723520655123,0.12549,143.87,143.81,0.416]
[1723520655435,40.63,143.85,143.81,0.416]
[1723520655646,6.9523,143.84,143.81,0.416]
[1723520655967,7.07859,143.82,143.81,0.416]
[1723520656118,6.9531,143.82,143.81,0.416]
[1723520657432,6.9521,143.85,143.81,0.416]
[1723520657653,6.9522,143.84,143.81,0.416]
[1723520658013,6.9527,143.83,143.81,0.416]
[1723520658418,6.9522,143.84,143.81,0.416]
[1723520659250,6.9531,143.82,143.81,0.416]
[1723520660127,0.25098,143.85,143.81,0.416]
[1723520660128,6.9527,143.83,143.81,0.416]
[1723520660523,6.9531,143.82,143.81,0.416]
[1723520661032,6.9526,143.83,143.81,0.416]
[1723520661239,40.63,143.82,143.8,9.4300576]
[1723520661420,7.07909,143.81,143.8,1.74641217]
[1723520661625,52.07869,143.82,143.8,1.74641217]
[1723520661925,0.12549,143.85,143.8,1.74641217]
[1723520662122,40.63,143.84,143.8,1.74641217]
[1723520662323,65.25098,143.83,143.8,1.74641217]
[1723520662516,6.9536,143.81,143.8,1.74641217]
[1723520662920,51.9536,143.81,143.8,1.74641217]
[1723520663120,52.20458,143.81,143.8,1.74641217]
[1723520663440,52.33007,143.81,143.8,1.74641217]
[1723520664244,113.08556,143.81,143.8,1.74641217]
[1723520664420,133.08556,143.81,143.8,1.74641217]
[1723520664836,113.08556,143.81,143.8,1.74641217]
[1723520665045,72.45556,143.81,143.8,1.74641217]
[1723520665243,26.9536,143.81,143.8,1.74641217]
[1723520665416,6.9536,143.81,143.8,1.74641217]
[1723520665939,6.9532,143.82,143.8,1.74641217]
[1723520666522,6.953,143.83,143.8,1.74641217]
[1723520666937,6.9534,143.82,143.8,1.74641217]
[1723520667136,0.25098,143.84,143.8,1.74641217]
[1723520667137,6.9536,143.81,143.8,1.74641217]
[1723520668146,6.9531,143.82,143.8,1.74641217]
[1723520668347,6.9536,143.81,143.8,1.74641217]
[1723520668941,17.3782,143.86,143.8,1.74641217]
[1723520669132,20.0,143.85,143.8,1.74641217]
[1723520669742,66.7472,143.88,143.8,1.74641217]
[1723520669928,6.9521,143.84,143.8,1.74641217]
[1723520670330,6.9526,143.83,143.8,1.74641217]
[1723520670927,6.9533,143.82,143.8,1.74641217]
[1723520671128,6.9536,143.81,143.8,1.74641217]
[1723520673355,6.9531,143.82,143.8,1.74641217]
[1723520673741,6.9536,143.81,143.8,1.74641217]
[1723520675045,6.953,143.83,143.8,1.74641217]
[1723520675453,6.9532,143.82,143.8,1.74641217]
[1723520675844,6.9536,143.81,143.8,1.74641217]
[1723520676228,51.9536,143.81,143.8,1.74641217]
[1723520676737,52.45556,143.81,143.8,1.74641217]
[1723520676939,6.9536,143.81,143.8,1.74641217]
[1723520678955,6.9513,143.86,143.8,1.74641217]
[1723520679256,6.9523,143.84,143.8,1.74641217]
[1723520679451,6.9526,143.83,143.8,1.74641217]
[1723520679654,6.9516,143.86,143.8,1.74641217]
[1723520679862,6.9516,143.86,143.8,8.70011217]
[1723520680160,6.9518,143.85,143.8,8.70011217]
[1723520680743,6.9518,143.85,143.8,1.74641217]
[1723520681143,6.9522,143.84,143.8,1.74641217]
[1723520682066,6.9512,143.86,143.8,1.74641217]
[1723520682267,6.9507,143.87,143.82,6.9527]
[1723520682760,40.07703171,143.91,143.81,17.3839]
[1723520682955,6.9513,143.86,143.81,24.3372]
[1723520683163,6.9506,143.88,143.82,6.953]
[1723520683456,6.9498,143.89,143.81,17.3839]
[1723520683663,6.9492,143.91,143.85,6.9516]
[1723520683840,6.9488,143.91,143.86,6.9511]
[1723520684167,6.9493,143.9,143.85,6.9516]
[1723520684954,6.9497,143.89,143.84,28.5559]
[1723520685149,6.9497,143.89,143.84,21.6038]
[1723520685459,0.12549,143.92,143.85,17.3783]
[1723520685761,6.9492,143.9,143.85,17.3783]
[1723520686158,6.9487,143.91,143.85,17.3783]
[1723520686461,6.9489,143.91,143.86,6.9507]
[1723520686761,6.9489,143.91,143.85,24.3298]
[1723520687082,6.9494,143.9,143.85,17.3783]
[1723520687566,40.63,143.93,143.87,6.9506]
[1723520687761,6.9485,143.92,143.87,6.9506]
[1723520687975,6.9485,143.92,143.85,24.3295]
[1723520688340,0.25098,143.91,143.84,21.6038]
[1723520688666,40.63,143.93,143.84,21.6038]
[1723520688667,6.9498,143.89,143.84,21.6038]
[1723520689559,6.9493,143.9,143.84,21.6038]
[1723520690951,6.9493,143.9,143.85,6.9516]
[1723520691170,6.9493,143.9,143.84,28.5559]
[1723520691551,6.9488,143.91,143.85,6.9515]
[1723520693143,6.9493,143.9,143.85,6.9515]
[1723520693371,6.9493,143.9,143.84,45.9353]
[1723520693976,6.9503,143.88,143.84,38.9832]
[1723520694155,32.52,143.87,143.8,24.41951217]
[1723520694481,32.52,143.85,143.8,31.37341217]
[1723520694779,6.9518,143.85,143.8,31.37341217]
[1723520695171,0.12549,143.86,143.8,24.41951217]
[1723520695364,6.9522,143.84,143.8,24.41951217]
[1723520697072,6.9508,143.87,143.82,6.953]
[1723520697268,6.9506,143.88,143.82,6.953]
[1723520697464,6.9508,143.87,143.82,6.953]
[1723520697666,6.9508,143.87,143.81,24.3367]
[1723520697845,6.9513,143.86,143.81,24.3367]
[1723520698045,6.9505,143.88,143.82,6.9529]
[1723520698256,6.9508,143.87,143.82,6.9529]
[1723520698661,6.9508,143.87,143.81,24.3367]
[1723520699067,6.9514,143.86,143.81,24.3367]
[1723520700450,6.9516,143.85,143.81,17.3832]
[1723520700847,6.951,143.87,143.82,0.49041074]
[1723520701067,20.0,143.88,143.81,17.3832]
[1723520701275,0.12549,143.89,143.81,17.3832]
[1723520701276,6.9517,143.85,143.81,17.3832]
[1723520702476,6.9517,143.85,143.8,31.37351217]
[1723520702869,6.9513,143.86,143.81,6.9535]
[1723520703585,6.9517,143.85,143.8,24.41951217]
[1723520704380,6.9517,143.85,143.8,31.37351217]
[1723520706380,40.67,143.87,143.8,24.41951217]
[1723520706581,45.0,143.88,143.81,6.9533]
[1723520706762,6.9511,143.87,143.82,6.953]
[1723520707137,7.07909,143.81,143.8,1.217e-05]
[1723520707255,0.12549,143.85,143.75,24.0195]
[1723520707475,40.67,143.82,143.71,24.0236]
[1723520707759,6.9542,143.8,143.74,6.9569]
[1723520707952,6.9546,143.79,143.74,6.9569]
[1723520708583,17.382,143.83,143.75,6.9562]
[1723520708584,6.9541,143.8,143.75,6.9562]
[1723520708768,0.25098,143.84,143.76,1.39100519]
[1723520709059,40.67,143.85,143.76,17.3899]
[1723520709276,15.5905,143.9,143.8,17.3851]
[1723520709587,6.9501,143.89,143.83,6.9522]
[1723520709763,6.9507,143.87,143.82,17.3818]
[1723520709960,6.9512,143.86,143.82,17.3818]
[1723520710260,6.9512,143.86,143.79,21.7128]
[1723520710261,40.67,143.86,143.79,21.7128]
[1723520710462,6.9533,143.82,143.79,6.6283]
[1723520711184,40.67,143.86,143.76,17.3897]
[1723520711434,6.9551,143.78,143.74,6.6283]
[1723520711714,40.67,143.8,143.74,6.6283]
[1723520713406,6.9555,143.78,143.74,6.6283]
[1723520716013,0.12549,143.79,143.71,6.6283]
[1723520716314,6.9565,143.75,143.71,6.6283]
[1723520716710,47.6259,143.77,143.71,13.5866]
[1723520716894,6.9563,143.76,143.71,13.5866]
[1723520717113,40.79549,143.77,143.71,6.6283]
[1723520717307,0.12549,143.76,143.71,6.6283]
[1723520717914,6.9569,143.75,143.71,6.6283]
[1723520718916,40.67,143.77,143.71,24.0235]
[1723520719089,40.67,143.77,143.74,6.9569]
[1723520719408,47.6241,143.8,143.75,6.9564]
[1723520719807,40.67,143.8,143.71,6.6283]
[1723520720018,2.68290359,143.83,143.76,6.9557]
[1723520720019,6.954,143.81,143.76,6.9557]
[1723520720194,40.67,143.83,143.75,17.3906]
[1723520720395,40.67,143.81,143.75,17.3906]
[1723520720715,6.9546,143.79,143.74,6.9569]
[1723520720899,40.67,143.81,143.72,17.3944]
[1723520721097,6.9546,143.79,143.74,6.9566]
[1723520721784,40.67,143.81,143.74,6.9566]
[1723520722010,78.51020602,143.85,143.74,17.3916]
[1723520722193,6.9541,143.8,143.74,17.3916]
[1723520722420,6.9549,143.79,143.74,24.3485]
[1723520722625,40.67,143.78,143.68,0.8292731]
[1723520722793,6.9559,143.77,143.71,6.958]
[1723520723116,6.9559,143.77,143.7,17.3965]
[1723520723117,0.12549,143.77,143.7,17.3965]
[1723520723412,6.9561,143.76,143.7,17.3965]
[1723520723799,6.9561,143.76,143.71,6.9582]
[1723520724521,40.67,143.78,143.68,0.8292731]
[1723520724522,6.958,143.72,143.68,0.8292731]
[1723520725392,6.9574,143.74,143.68,7.7889731]
[1723520725590,6.9576,143.73,143.68,7.7889731]
[1723520726007,40.67,143.75,143.68,0.8292731]
[1723520726008,6.9583,143.72,143.68,0.8292731]
[1723520726220,6.9586,143.71,143.68,0.8292731]
[1723520726391,6.9594,143.69,143.68,0.8292731]
[1723520726605,47.6294,143.69,143.68,0.8292731]
[1723520727933,6.9594,143.69,143.68,0.8292731]
[1723520728524,6.959,143.7,143.68,0.8292731]
[1723520728700,6.9594,143.69,143.68,0.8292731]
[1723520729210,40.79549,143.72,143.68,0.8292731]
[1723520729211,6.9589,143.7,143.68,0.8292731]
[1723520729398,6.9594,143.69,143.68,0.8292731]
[1723520730422,47.88038,143.69,143.68,0.8292731]
[1723520730626,6.9603,143.67,143.66,0.07031191]
[1723520733009,6.96,143.68,143.66,0.07031191]
[1723520733209,6.9603,143.67,143.66,0.07031191]
[1723520734101,40.67,143.69,143.66,0.07031191]
[1723520734428,42.8789,143.76,143.66,0.07031191]
[1723520734429,6.959,143.7,143.66,0.07031191]
[1723520734642,40.67,143.72,143.66,0.07031191]
[1723520734935,40.67,143.72,143.67,6.9602]
[1723520735099,6.9589,143.7,143.66,17.47171191]
[1723520735297,40.67,143.72,143.66,0.07031191]
[1723520735494,6.9598,143.69,143.66,0.07031191]
[1723520735720,40.67,143.72,143.66,0.07031191]
[1723520736508,6.9603,143.67,143.66,0.07031191]
[1723520736935,52.08579,143.67,143.66,0.07031191]
[1723520737121,6.9603,143.67,143.66,0.07031191]
[1723520737364,71.9603,143.67,143.66,0.07031191]
[1723520737552,72.46226,143.67,143.66,0.07031191]
[1723520737838,72.33677,143.67,143.66,0.07031191]